[Event "Late-Titled-Tuesday-Blitz-September-19-2023"]
[Site "Chess.com"]
[Date "2023.09.19"]
[Round "5"]
[White "TanitoluwaAps116"]
[Black "slorovel"]
[Result "0-1"]
[WhiteElo "2656"]
[BlackElo "2514"]
[TimeControl "180+1"]
[EndTime "14:54:09 PDT"]
[Termination "slorovel won on time"]

1. e4 {[%clk 0:02:54.6]} 1... c6 {[%clk 0:02:55.4]} 2. d4 {[%clk 0:02:54.4]}
2... d5 {[%clk 0:02:55.6]} 3. exd5 {[%clk 0:02:51.3]} 3... cxd5 {[%clk
0:02:55.5]} 4. Bd3 {[%clk 0:02:51.6]} 4... Nc6 {[%clk 0:02:54.6]} 5. c3 {[%clk
0:02:51]} 5... Qc7 {[%clk 0:02:55.1]} 6. Ne2 {[%clk 0:02:49.9]} 6... Bg4 {[%clk
0:02:52]} 7. O-O {[%clk 0:02:48.3]} 7... e6 {[%clk 0:02:51.5]} 8. Qe1 {[%clk
0:02:41.5]} 8... Bd6 {[%clk 0:02:49.2]} 9. f3 {[%clk 0:02:41.6]} 9... Bh5 {[%clk
0:02:48.1]} 10. Qh4 {[%clk 0:02:39.4]} 10... Nf6 {[%clk 0:02:35.7]} 11. Bg5
{[%clk 0:02:36]} 11... Bg6 {[%clk 0:02:27.3]} 12. Bxg6 {[%clk 0:02:28.4]} 12...
fxg6 {[%clk 0:02:28.2]} 13. Bxf6 {[%clk 0:02:28.1]} 13... gxf6 {[%clk
0:02:27.1]} 14. Qxf6 {[%clk 0:02:29]} 14... Bxh2+ {[%clk 0:02:16.4]} 15. Kf2
{[%clk 0:02:04.7]} 15... Kd7 {[%clk 0:02:10.4]} 16. g3 {[%clk 0:01:55.6]} 16...
h5 {[%clk 0:02:10]} 17. Nf4 {[%clk 0:01:41]} 17... Rae8 {[%clk 0:02:02.5]} 18.
Kg2 {[%clk 0:01:12.3]} 18... Bxg3 {[%clk 0:01:45.6]} 19. Kxg3 {[%clk 0:01:13.2]}
19... g5 {[%clk 0:01:44.5]} 20. Nd2 {[%clk 0:00:37.7]} 20... Ref8 {[%clk
0:01:40.8]} 21. Qxe6+ {[%clk 0:00:34.6]} 21... Kd8 {[%clk 0:01:40.9]} 22. Qxd5+
{[%clk 0:00:17.1]} 22... Kc8 {[%clk 0:01:41.1]} 23. Ne4 {[%clk 0:00:15.8]} 23...
Qxf4+ {[%clk 0:01:37]} 24. Kg2 {[%clk 0:00:16.3]} 24... g4 {[%clk 0:01:32.9]}
25. Qe6+ {[%clk 0:00:08.8]} 25... Kb8 {[%clk 0:01:29.9]} 26. Qd6+ {[%clk
0:00:08.7]} 26... Qxd6 {[%clk 0:01:27.7]} 27. Nxd6 {[%clk 0:00:09.6]} 27... Rhg8
{[%clk 0:01:25.4]} 28. fxg4 {[%clk 0:00:06.1]} 28... Rxg4+ {[%clk 0:01:26]} 29.
Kh3 {[%clk 0:00:06.1]} 29... Rfg8 {[%clk 0:01:23.9]} 30. Rf3 {[%clk 0:00:06.3]}
30... Ne7 {[%clk 0:01:22.2]} 31. Raf1 {[%clk 0:00:05.1]} 31... Nd5 {[%clk
0:01:19]} 32. Nb5 {[%clk 0:00:03.6]} 32... b6 {[%clk 0:00:59.3]} 33. c4 {[%clk
0:00:02.7]} 33... a6 {[%clk 0:00:41.2]} 34. Rf8+ {[%clk 0:00:02.3]} 34... Rxf8
{[%clk 0:00:41]} 35. Rf3 {[%clk 0:00:03.2]} 35... Rxf3+ {[%clk 0:00:40]} 36. Kh2
{[%clk 0:00:02.6]} 36... Re4 {[%clk 0:00:16.2]} 37. cxd5 {[%clk 0:00:02]} 37...
Re2+ {[%clk 0:00:16.3]} 0-1

[Event "Late-Titled-Tuesday-Blitz-September-19-2023"]
[Site "Chess.com"]
[Date "2023.09.19"]
[Round "5"]
[White "AyMitecK"]
[Black "TheMagician"]
[Result "1-0"]
[WhiteElo "2514"]
[BlackElo "2244"]
[TimeControl "180+1"]
[EndTime "14:54:10 PDT"]
[Termination "AyMitecK won on time"]

1. e4 {[%clk 0:03:00.9]} 1... c5 {[%clk 0:02:57.7]} 2. Nf3 {[%clk 0:03:00.9]}
2... d6 {[%clk 0:02:57]} 3. Bb5+ {[%clk 0:03:01.5]} 3... Bd7 {[%clk 0:02:56.3]}
4. Bxd7+ {[%clk 0:03:01.8]} 4... Qxd7 {[%clk 0:02:56.6]} 5. O-O {[%clk
0:03:02.7]} 5... e6 {[%clk 0:02:56.7]} 6. Re1 {[%clk 0:03:03.6]} 6... Nf6 {[%clk
0:02:52.1]} 7. c3 {[%clk 0:03:04.5]} 7... d5 {[%clk 0:02:49.1]} 8. d4 {[%clk
0:03:05.4]} 8... dxe4 {[%clk 0:02:48]} 9. Ne5 {[%clk 0:03:06.3]} 9... Qc7 {[%clk
0:02:45.8]} 10. Bg5 {[%clk 0:03:00.2]} 10... Be7 {[%clk 0:02:45.8]} 11. Qa4+
{[%clk 0:02:55.6]} 11... Nbd7 {[%clk 0:02:41.4]} 12. Bxf6 {[%clk 0:02:52]} 12...
gxf6 {[%clk 0:02:40.2]} 13. Nxd7 {[%clk 0:02:51.9]} 13... Qxd7 {[%clk
0:02:40.3]} 14. Qxd7+ {[%clk 0:02:52.8]} 14... Kxd7 {[%clk 0:02:40.2]} 15. Rxe4
{[%clk 0:02:53.7]} 15... Rad8 {[%clk 0:02:17.4]} 16. dxc5 {[%clk 0:02:49.3]}
16... Bxc5 {[%clk 0:02:16.4]} 17. Nd2 {[%clk 0:02:49.1]} 17... Ke7 {[%clk
0:02:08.4]} 18. Nf3 {[%clk 0:02:45.2]} 18... Rd3 {[%clk 0:02:01.3]} 19. Kf1
{[%clk 0:02:39.9]} 19... Rd7 {[%clk 0:01:44.9]} 20. a4 {[%clk 0:02:38.5]} 20...
h5 {[%clk 0:01:38.1]} 21. Rc4 {[%clk 0:02:37.3]} 21... Bd6 {[%clk 0:01:32.8]}
22. a5 {[%clk 0:02:34.7]} 22... a6 {[%clk 0:01:31.1]} 23. Ke2 {[%clk 0:02:31.9]}
23... Rg8 {[%clk 0:01:27]} 24. g3 {[%clk 0:02:31.5]} 24... Rg4 {[%clk
0:01:26.3]} 25. Nd4 {[%clk 0:02:23.8]} 25... Be5 {[%clk 0:01:23.5]} 26. f3
{[%clk 0:02:18.1]} 26... Rg8 {[%clk 0:01:19.2]} 27. Nb3 {[%clk 0:02:12]} 27...
f5 {[%clk 0:00:58.8]} 28. Re1 {[%clk 0:02:06.8]} 28... h4 {[%clk 0:00:58]} 29.
f4 {[%clk 0:02:04.6]} 29... Bd6 {[%clk 0:00:56.5]} 30. Kf3 {[%clk 0:02:01.5]}
30... hxg3 {[%clk 0:00:56.1]} 31. hxg3 {[%clk 0:02:02.2]} 31... Rh8 {[%clk
0:00:54.6]} 32. Nd4 {[%clk 0:02:01.9]} 32... Kf6 {[%clk 0:00:45.3]} 33. Kg2
{[%clk 0:01:57.2]} 33... Bc7 {[%clk 0:00:41.9]} 34. b4 {[%clk 0:01:53.5]} 34...
Bb8 {[%clk 0:00:38.8]} 35. Nf3 {[%clk 0:01:52.4]} 35... Rd3 {[%clk 0:00:24.6]}
36. Re2 {[%clk 0:01:49.1]} 36... Rd1 {[%clk 0:00:23.7]} 37. Re1 {[%clk
0:01:49.5]} 37... Rd3 {[%clk 0:00:19.9]} 38. Re2 {[%clk 0:01:47.9]} 38... Rd1
{[%clk 0:00:19.8]} 39. Rd4 {[%clk 0:01:48.5]} 39... Rxd4 {[%clk 0:00:10.6]} 40.
Nxd4 {[%clk 0:01:49.2]} 40... Rg8 {[%clk 0:00:09.4]} 41. Kf3 {[%clk 0:01:48.4]}
41... Rh8 {[%clk 0:00:09.3]} 42. Rd2 {[%clk 0:01:45.2]} 42... Ba7 {[%clk
0:00:08.4]} 43. Nb3 {[%clk 0:01:42.3]} 43... Ke7 {[%clk 0:00:07.6]} 44. Kg2
{[%clk 0:01:40.6]} 44... f6 {[%clk 0:00:07.4]} 45. Nd4 {[%clk 0:01:38.3]} 45...
Rc8 {[%clk 0:00:05.2]} 46. Re2 {[%clk 0:01:35.9]} 46... Bxd4 {[%clk 0:00:04.7]}
47. cxd4 {[%clk 0:01:36.4]} 47... Kd6 {[%clk 0:00:05]} 48. Kf3 {[%clk
0:01:32.6]} 48... Kd5 {[%clk 0:00:05.1]} 49. Rb2 {[%clk 0:01:25.5]} 49... Rc3+
{[%clk 0:00:05.4]} 50. Kf2 {[%clk 0:01:25.2]} 50... Kxd4 {[%clk 0:00:05.8]} 51.
b5 {[%clk 0:01:25.8]} 51... Rc5 {[%clk 0:00:03.7]} 52. bxa6 {[%clk 0:01:24.6]}
52... bxa6 {[%clk 0:00:04.6]} 53. Rb6 {[%clk 0:01:25]} 53... Kd5 {[%clk
0:00:04.6]} 54. Rxa6 {[%clk 0:01:24.9]} 54... Rc2+ {[%clk 0:00:05.5]} 55. Kf3
{[%clk 0:01:23.7]} 55... Rc3+ {[%clk 0:00:06.2]} 56. Kg2 {[%clk 0:01:22.5]}
56... Rc2+ {[%clk 0:00:07.1]} 57. Kh3 {[%clk 0:01:22.1]} 57... Rc1 {[%clk
0:00:02.1]} 58. Ra8 {[%clk 0:01:22]} 58... Rh1+ {[%clk 0:00:01.6]} 59. Kg2
{[%clk 0:01:22.6]} 59... Ra1 {[%clk 0:00:01.5]} 60. Rd8+ {[%clk 0:01:23.3]}
60... Ke4 {[%clk 0:00:01.4]} 61. Rd6 {[%clk 0:01:22.1]} 1-0

[Event "Late-Titled-Tuesday-Blitz-September-19-2023"]
[Site "Chess.com"]
[Date "2023.09.19"]
[Round "5"]
[White "Eloist"]
[Black "Ready4abattle"]
[Result "1-0"]
[WhiteElo "2492"]
[BlackElo "2327"]
[TimeControl "180+1"]
[EndTime "14:54:12 PDT"]
[Termination "Eloist won by resignation"]

1. e4 {[%clk 0:03:00.9]} 1... c5 {[%clk 0:03:00]} 2. Nf3 {[%clk 0:03:00.5]} 2...
Nc6 {[%clk 0:03:00.3]} 3. Bb5 {[%clk 0:02:59.5]} 3... e6 {[%clk 0:03:00.6]} 4.
Bxc6 {[%clk 0:02:59.3]} 4... bxc6 {[%clk 0:03:01.5]} 5. d3 {[%clk 0:02:59.5]}
5... Ne7 {[%clk 0:03:01.7]} 6. Qe2 {[%clk 0:02:59.3]} 6... Ng6 {[%clk
0:02:54.3]} 7. h4 {[%clk 0:02:56.2]} 7... h5 {[%clk 0:02:53.7]} 8. e5 {[%clk
0:02:55.4]} 8... Be7 {[%clk 0:02:51.7]} 9. Qe4 {[%clk 0:02:54.3]} 9... d5 {[%clk
0:02:39]} 10. exd6 {[%clk 0:02:48.7]} 10... Qxd6 {[%clk 0:02:38.7]} 11. Na3
{[%clk 0:02:44.8]} 11... Qd5 {[%clk 0:02:32.3]} 12. Bg5 {[%clk 0:02:36.7]} 12...
Rb8 {[%clk 0:02:15.4]} 13. Bxe7 {[%clk 0:02:34.3]} 13... Qxe4+ {[%clk
0:02:05.3]} 14. dxe4 {[%clk 0:02:33.7]} 14... Kxe7 {[%clk 0:02:05.6]} 15. b3
{[%clk 0:02:28.2]} 15... Ba6 {[%clk 0:01:59.1]} 16. O-O-O {[%clk 0:02:19.5]}
16... Rhd8 {[%clk 0:01:52.4]} 17. c4 {[%clk 0:02:08.6]} 17... e5 {[%clk
0:01:39.9]} 18. Nb1 {[%clk 0:02:03.5]} 18... Rxd1+ {[%clk 0:01:37.3]} 19. Rxd1
{[%clk 0:02:02.4]} 19... Bc8 {[%clk 0:01:32.9]} 20. g3 {[%clk 0:01:42.6]} 20...
Bg4 {[%clk 0:01:32.4]} 21. Rd3 {[%clk 0:01:41.6]} 21... f5 {[%clk 0:01:23.8]}
22. Nc3 {[%clk 0:01:33.3]} 22... fxe4 {[%clk 0:01:15.7]} 23. Nxe4 {[%clk
0:01:32.3]} 23... Rf8 {[%clk 0:01:16.1]} 24. Nfg5 {[%clk 0:01:24.5]} 24... Bf5
{[%clk 0:01:04]} 25. f3 {[%clk 0:01:16]} 25... Nh8 {[%clk 0:01:02.2]} 26. Rd6
{[%clk 0:01:09.3]} 26... Bxe4 {[%clk 0:00:54.8]} 27. Nxe4 {[%clk 0:01:09.1]}
27... Rxf3 {[%clk 0:00:53.4]} 28. Rxc6 {[%clk 0:01:09.2]} 28... Nf7 {[%clk
0:00:45.3]} 29. Rc7+ {[%clk 0:01:01.1]} 29... Ke6 {[%clk 0:00:45.3]} 30. Rxf7
{[%clk 0:00:53.5]} 30... Rxf7 {[%clk 0:00:43.4]} 31. Ng5+ {[%clk 0:00:53.3]}
31... Kf6 {[%clk 0:00:43.4]} 32. Nxf7 {[%clk 0:00:53.2]} 32... Kxf7 {[%clk
0:00:44.1]} 33. Kd2 {[%clk 0:00:52.9]} 33... g5 {[%clk 0:00:37.9]} 34. hxg5
{[%clk 0:00:38.7]} 34... Kg6 {[%clk 0:00:37.6]} 35. Ke3 {[%clk 0:00:38.9]} 35...
Kxg5 {[%clk 0:00:37.3]} 36. b4 {[%clk 0:00:26]} 36... cxb4 {[%clk 0:00:28.8]}
37. Ke4 {[%clk 0:00:20.9]} 37... Kg4 {[%clk 0:00:19.9]} 38. c5 {[%clk
0:00:19.9]} 38... Kxg3 {[%clk 0:00:20.5]} 39. c6 {[%clk 0:00:20.3]} 39... h4
{[%clk 0:00:21.4]} 40. c7 {[%clk 0:00:20.7]} 40... h3 {[%clk 0:00:22.1]} 41.
c8=Q {[%clk 0:00:20.9]} 41... h2 {[%clk 0:00:18.2]} 42. Qg8+ {[%clk 0:00:20.8]}
42... Kf2 {[%clk 0:00:18.3]} 43. Qf7+ {[%clk 0:00:20.9]} 43... Kg1 {[%clk
0:00:18.6]} 44. Qg6+ {[%clk 0:00:21]} 44... Kf1 {[%clk 0:00:19.1]} 45. Qf5+
{[%clk 0:00:21]} 45... Kg1 {[%clk 0:00:19.6]} 46. Qg4+ {[%clk 0:00:21.2]} 46...
Kf1 {[%clk 0:00:20]} 47. Qf3+ {[%clk 0:00:21.4]} 47... Kg1 {[%clk 0:00:20.3]}
48. Qg3+ {[%clk 0:00:21.4]} 48... Kh1 {[%clk 0:00:19.9]} 1-0

[Event "Late-Titled-Tuesday-Blitz-September-19-2023"]
[Site "Chess.com"]
[Date "2023.09.19"]
[Round "5"]
[White "Lennis93"]
[Black "Joshukid"]
[Result "1-0"]
[WhiteElo "2740"]
[BlackElo "2566"]
[TimeControl "180+1"]
[EndTime "14:54:14 PDT"]
[Termination "Lennis93 won by resignation"]

1. d4 {[%clk 0:03:00.9]} 1... d5 {[%clk 0:00:53.2]} 2. Nf3 {[%clk 0:03:01.8]}
2... Nf6 {[%clk 0:00:53.1]} 3. g3 {[%clk 0:03:02.7]} 3... e6 {[%clk 0:00:51.9]}
4. Bg2 {[%clk 0:03:03.1]} 4... Be7 {[%clk 0:00:52.4]} 5. O-O {[%clk 0:03:03.5]}
5... O-O {[%clk 0:00:53.1]} 6. Nbd2 {[%clk 0:03:03.7]} 6... c5 {[%clk
0:00:52.9]} 7. c3 {[%clk 0:03:01.6]} 7... Nc6 {[%clk 0:00:53.2]} 8. e3 {[%clk
0:03:00.8]} 8... b6 {[%clk 0:00:52.9]} 9. b3 {[%clk 0:02:56.4]} 9... a5 {[%clk
0:00:52.3]} 10. Bb2 {[%clk 0:02:54]} 10... Ba6 {[%clk 0:00:46.7]} 11. Re1 {[%clk
0:02:53.8]} 11... Rc8 {[%clk 0:00:41.9]} 12. Bf1 {[%clk 0:02:42.9]} 12... Bb7
{[%clk 0:00:40.4]} 13. Rc1 {[%clk 0:02:36.7]} 13... Re8 {[%clk 0:00:39.6]} 14.
Qc2 {[%clk 0:02:34]} 14... Bf8 {[%clk 0:00:39]} 15. Qb1 {[%clk 0:02:33.7]} 15...
g6 {[%clk 0:00:36.9]} 16. Rcd1 {[%clk 0:02:22.2]} 16... Qc7 {[%clk 0:00:29.2]}
17. Bb5 {[%clk 0:02:20]} 17... Red8 {[%clk 0:00:20.2]} 18. Bf1 {[%clk
0:02:17.5]} 18... Bg7 {[%clk 0:00:20.7]} 19. Bg2 {[%clk 0:02:11.2]} 19... Re8
{[%clk 0:00:19.6]} 20. c4 {[%clk 0:02:11.2]} 20... cxd4 {[%clk 0:00:19.1]} 21.
exd4 {[%clk 0:02:11.2]} 21... dxc4 {[%clk 0:00:18.4]} 22. bxc4 {[%clk
0:02:10.9]} 22... Rcd8 {[%clk 0:00:16]} 23. h3 {[%clk 0:02:10.9]} 23... Nd7
{[%clk 0:00:15.3]} 24. d5 {[%clk 0:02:09.6]} 24... Bxb2 {[%clk 0:00:12.8]} 25.
dxc6 {[%clk 0:02:09.8]} 25... Qxc6 {[%clk 0:00:05.3]} 26. Qxb2 {[%clk
0:02:09.3]} 26... Nc5 {[%clk 0:00:06.2]} 27. Qb5 {[%clk 0:02:01.3]} 27... Qc8
{[%clk 0:00:06]} 28. Qxb6 {[%clk 0:01:54.7]} 28... Na4 {[%clk 0:00:02.9]} 29.
Qxa5 {[%clk 0:01:52.4]} 29... Nc5 {[%clk 0:00:03.3]} 30. Nb3 {[%clk 0:01:50.7]}
30... Nd3 {[%clk 0:00:03.5]} 31. Rf1 {[%clk 0:01:48.5]} 31... Nb2 {[%clk
0:00:03.3]} 32. Rc1 {[%clk 0:01:47]} 32... Nd3 {[%clk 0:00:02.5]} 33. Rc2 {[%clk
0:01:46.4]} 33... Be4 {[%clk 0:00:02]} 34. Ng5 {[%clk 0:01:42]} 34... Bxg2
{[%clk 0:00:01.8]} 35. Kxg2 {[%clk 0:01:41.9]} 35... Qb7+ {[%clk 0:00:02.7]} 36.
Kg1 {[%clk 0:01:38.9]} 36... Ra8 {[%clk 0:00:03.6]} 37. Qb5 {[%clk 0:01:32.2]}
37... Qe7 {[%clk 0:00:04.3]} 38. h4 {[%clk 0:01:25.1]} 38... Rab8 {[%clk
0:00:04.9]} 39. Qa5 {[%clk 0:01:18]} 39... h6 {[%clk 0:00:05.6]} 40. Ne4 {[%clk
0:01:17.5]} 40... f5 {[%clk 0:00:04.8]} 41. Nec5 {[%clk 0:01:15.4]} 41... Ra8
{[%clk 0:00:05.4]} 42. Qb5 {[%clk 0:01:02.6]} 42... Reb8 {[%clk 0:00:05.9]} 43.
Qc6 {[%clk 0:00:56.2]} 43... Nxc5 {[%clk 0:00:04.3]} 44. Qxc5 {[%clk 0:00:54.8]}
44... Qf6 {[%clk 0:00:03.7]} 45. Qe3 {[%clk 0:00:54.6]} 45... e5 {[%clk
0:00:03]} 46. Qxh6 {[%clk 0:00:54.3]} 46... f4 {[%clk 0:00:03.2]} 47. Qg5 {[%clk
0:00:54]} 47... Qf7 {[%clk 0:00:03.2]} 48. Qxe5 {[%clk 0:00:52.1]} 48... f3
{[%clk 0:00:03.8]} 49. Qd5 {[%clk 0:00:47.6]} 49... Qxd5 {[%clk 0:00:04.4]} 50.
cxd5 {[%clk 0:00:48.5]} 50... Rc8 {[%clk 0:00:05.2]} 51. Rxc8+ {[%clk
0:00:47.6]} 51... Rxc8 {[%clk 0:00:06.1]} 52. Rd1 {[%clk 0:00:47.4]} 52... Rc2
{[%clk 0:00:07]} 53. d6 {[%clk 0:00:47.8]} 53... Kf8 {[%clk 0:00:07.9]} 54. d7
{[%clk 0:00:47.9]} 1-0

[Event "Late-Titled-Tuesday-Blitz-September-19-2023"]
[Site "Chess.com"]
[Date "2023.09.19"]
[Round "5"]
[White "Jaka_Brilej"]
[Black "jinxy2009"]
[Result "1-0"]
[WhiteElo "2480"]
[BlackElo "2306"]
[TimeControl "180+1"]
[EndTime "14:54:14 PDT"]
[Termination "Jaka_Brilej won on time"]

1. e4 {[%clk 0:03:00.9]} 1... c6 {[%clk 0:02:57.6]} 2. d4 {[%clk 0:02:31.4]}
2... d5 {[%clk 0:02:53.4]} 3. e5 {[%clk 0:02:31.9]} 3... Bf5 {[%clk 0:02:53.2]}
4. Nf3 {[%clk 0:02:32.1]} 4... e6 {[%clk 0:02:52.9]} 5. Be2 {[%clk 0:02:32.8]}
5... a5 {[%clk 0:02:51.8]} 6. O-O {[%clk 0:02:31.7]} 6... a4 {[%clk 0:02:52.1]}
7. a3 {[%clk 0:02:09.8]} 7... Nd7 {[%clk 0:02:49.2]} 8. Nbd2 {[%clk 0:02:09.2]}
8... Ne7 {[%clk 0:02:24.5]} 9. Nh4 {[%clk 0:02:01.1]} 9... Bg6 {[%clk 0:02:23]}
10. Nxg6 {[%clk 0:01:56.9]} 10... Nxg6 {[%clk 0:02:21.4]} 11. f4 {[%clk
0:01:50.6]} 11... Nh4 {[%clk 0:02:07.6]} 12. Nf3 {[%clk 0:01:35.3]} 12... Nxf3+
{[%clk 0:02:03.8]} 13. Rxf3 {[%clk 0:01:35.8]} 13... c5 {[%clk 0:02:04.6]} 14.
c3 {[%clk 0:01:35.7]} 14... Qb6 {[%clk 0:01:37]} 15. Kh1 {[%clk 0:01:26.3]}
15... c4 {[%clk 0:00:55.6]} 16. f5 {[%clk 0:01:15.4]} 16... Qb3 {[%clk
0:00:52.4]} 17. Qf1 {[%clk 0:01:11.3]} 17... O-O-O {[%clk 0:00:50.1]} 18. Bd1
{[%clk 0:01:07.4]} 18... Qb5 {[%clk 0:00:47.9]} 19. Qe2 {[%clk 0:00:56.3]} 19...
Qc6 {[%clk 0:00:32]} 20. Qc2 {[%clk 0:00:54.1]} 20... b5 {[%clk 0:00:31.4]} 21.
Bg5 {[%clk 0:00:52.2]} 21... Re8 {[%clk 0:00:26.7]} 22. Qf2 {[%clk 0:00:35.7]}
22... h6 {[%clk 0:00:20.4]} 23. Bh4 {[%clk 0:00:32.3]} 23... Be7 {[%clk
0:00:18.5]} 24. Bxe7 {[%clk 0:00:27.7]} 24... Rxe7 {[%clk 0:00:19.4]} 25. Bc2
{[%clk 0:00:28.2]} 25... Ree8 {[%clk 0:00:18]} 26. Rf1 {[%clk 0:00:28]} 26...
Qc7 {[%clk 0:00:13.3]} 27. Qg3 {[%clk 0:00:27.9]} 27... Rhg8 {[%clk 0:00:13]}
28. fxe6 {[%clk 0:00:22.6]} 28... fxe6 {[%clk 0:00:13.1]} 29. Bh7 {[%clk
0:00:23.2]} 29... Rh8 {[%clk 0:00:13.1]} 30. Bg6 {[%clk 0:00:12.5]} 30... Ref8
{[%clk 0:00:11.8]} 31. Qg4 {[%clk 0:00:12.9]} 31... Qc6 {[%clk 0:00:09.2]} 32.
Bf7 {[%clk 0:00:11.5]} 32... h5 {[%clk 0:00:05.7]} 33. Qxg7 {[%clk 0:00:07.8]}
33... Qb6 {[%clk 0:00:02]} 34. Qg6 {[%clk 0:00:07.4]} 1-0

[Event "Late-Titled-Tuesday-Blitz-September-19-2023"]
[Site "Chess.com"]
[Date "2023.09.19"]
[Round "5"]
[White "CFalcons8"]
[Black "TC2304"]
[Result "0-1"]
[WhiteElo "2256"]
[BlackElo "2376"]
[TimeControl "180+1"]
[EndTime "14:54:14 PDT"]
[Termination "TC2304 won by resignation"]

1. e4 {[%clk 0:01:18.2]} 1... Nc6 {[%clk 0:02:57.7]} 2. Nf3 {[%clk 0:01:14.2]}
2... d6 {[%clk 0:02:58]} 3. d4 {[%clk 0:01:13.9]} 3... Nf6 {[%clk 0:02:58.2]} 4.
Nbd2 {[%clk 0:01:08.9]} 4... e5 {[%clk 0:02:56.7]} 5. dxe5 {[%clk 0:01:06.3]}
5... Nxe5 {[%clk 0:02:52.8]} 6. Be2 {[%clk 0:00:58.2]} 6... Be7 {[%clk
0:02:47.8]} 7. Nxe5 {[%clk 0:00:51.8]} 7... dxe5 {[%clk 0:02:47.9]} 8. c3 {[%clk
0:00:45.9]} 8... O-O {[%clk 0:02:47.2]} 9. O-O {[%clk 0:00:44.6]} 9... c6 {[%clk
0:02:46.3]} 10. Qc2 {[%clk 0:00:36]} 10... Be6 {[%clk 0:02:44.8]} 11. Bc4 {[%clk
0:00:34]} 11... Bxc4 {[%clk 0:02:41.2]} 12. Nxc4 {[%clk 0:00:34.9]} 12... Qc7
{[%clk 0:02:41.5]} 13. f3 {[%clk 0:00:22.8]} 13... Rfd8 {[%clk 0:02:38.1]} 14.
Be3 {[%clk 0:00:22.1]} 14... b5 {[%clk 0:02:36.3]} 15. Nd2 {[%clk 0:00:14.8]}
15... a5 {[%clk 0:02:36.8]} 16. a4 {[%clk 0:00:02.4]} 16... Qb7 {[%clk
0:02:29.2]} 17. axb5 {[%clk 0:00:01.6]} 17... Qxb5 {[%clk 0:02:23]} 18. b3
{[%clk 0:00:02.5]} 18... Qd3 {[%clk 0:02:20.3]} 19. Qxd3 {[%clk 0:00:02]} 19...
Rxd3 {[%clk 0:02:21.2]} 20. Nc4 {[%clk 0:00:02.5]} 20... Rxc3 {[%clk 0:02:19.9]}
21. Rfc1 {[%clk 0:00:03.1]} 21... Rxc1+ {[%clk 0:02:11.3]} 22. Rxc1 {[%clk
0:00:04]} 22... Nd7 {[%clk 0:02:12]} 23. Ra1 {[%clk 0:00:02.3]} 23... Bb4 {[%clk
0:01:56]} 24. Bd2 {[%clk 0:00:02.1]} 24... Bxd2 {[%clk 0:01:54.4]} 25. Nxd2
{[%clk 0:00:03]} 25... Nb6 {[%clk 0:01:50.4]} 26. b4 {[%clk 0:00:02.8]} 26... a4
{[%clk 0:01:50.7]} 27. Rc1 {[%clk 0:00:02.6]} 27... a3 {[%clk 0:01:40.8]} 28.
Nb3 {[%clk 0:00:02.8]} 28... a2 {[%clk 0:01:40.1]} 29. Na1 {[%clk 0:00:02.6]}
29... Rc8 {[%clk 0:01:26.9]} 30. Rc2 {[%clk 0:00:02.6]} 30... Kf8 {[%clk
0:01:20.5]} 31. Rxa2 {[%clk 0:00:02.7]} 31... c5 {[%clk 0:01:20.3]} 32. bxc5
{[%clk 0:00:02.4]} 32... Rxc5 {[%clk 0:01:20.6]} 33. Nb3 {[%clk 0:00:03.2]}
33... Rc3 {[%clk 0:01:18.9]} 34. Nd2 {[%clk 0:00:03.2]} 34... Ke7 {[%clk
0:01:19]} 35. Kf2 {[%clk 0:00:03.8]} 35... f6 {[%clk 0:01:17.6]} 36. Ra7+ {[%clk
0:00:03.9]} 36... Nd7 {[%clk 0:01:17.4]} 37. Ke2 {[%clk 0:00:03.3]} 37... Ke6
{[%clk 0:01:16.3]} 38. Ra4 {[%clk 0:00:03.9]} 38... g6 {[%clk 0:01:16.6]} 39.
Ra6+ {[%clk 0:00:04]} 39... Ke7 {[%clk 0:01:16.8]} 40. Ra4 {[%clk 0:00:04.8]}
40... h5 {[%clk 0:01:16.7]} 41. Rc4 {[%clk 0:00:05.3]} 41... Ra3 {[%clk
0:01:16.5]} 42. Rc2 {[%clk 0:00:05.2]} 42... Nf8 {[%clk 0:01:09.6]} 43. Nc4
{[%clk 0:00:05.8]} 43... Ra7 {[%clk 0:01:06.7]} 44. Ne3 {[%clk 0:00:06.2]} 44...
Ne6 {[%clk 0:01:05.3]} 45. Nd5+ {[%clk 0:00:06.5]} 45... Kf7 {[%clk 0:01:05.9]}
46. g3 {[%clk 0:00:05.8]} 46... Nd4+ {[%clk 0:01:06]} 47. Kd2 {[%clk 0:00:06]}
47... Nxc2 {[%clk 0:01:06.9]} 48. Kxc2 {[%clk 0:00:06.6]} 48... Ra2+ {[%clk
0:01:07.3]} 49. Kd3 {[%clk 0:00:07.1]} 49... Rxh2 {[%clk 0:01:08.2]} 50. Ke3
{[%clk 0:00:07.8]} 50... h4 {[%clk 0:01:07.8]} 51. gxh4 {[%clk 0:00:07.8]} 51...
Rxh4 {[%clk 0:01:08.7]} 52. Kf2 {[%clk 0:00:08.2]} 52... Rh2+ {[%clk 0:01:07.6]}
53. Kg3 {[%clk 0:00:09.1]} 53... Rd2 {[%clk 0:01:07.3]} 54. f4 {[%clk 0:00:09]}
54... Rxd5 {[%clk 0:00:50.8]} 55. exd5 {[%clk 0:00:08.5]} 55... exf4+ {[%clk
0:00:51.5]} 56. Kxf4 {[%clk 0:00:08.9]} 56... Ke7 {[%clk 0:00:52.1]} 57. Ke4
{[%clk 0:00:09.1]} 57... Kd6 {[%clk 0:00:52.1]} 58. Kd4 {[%clk 0:00:09.4]} 58...
f5 {[%clk 0:00:52.5]} 0-1